[Event "Titled Tuesday Blitz October 31 Late 2023"]
[White "Pinto, Daniel"]
[Black "Zivic, Dragan"]
[WhiteFideId "3303144"]
[BlackFideId "904740"]
[WhiteElo "2410"]
[BlackElo "2329"]
[Result "1-0"]
[Round "10"]
[TimeControl "180+1"]
[Date "2023.10.31"]
[WhiteClock "0:00:07"]
[BlackClock "0:00:00"]
[Board "81"]

1. c4 {[%clk 0:02:56]}  Nf6 {[%clk 0:02:43]} 2. Nc3 {[%clk 0:02:55]}  c5 {[%clk 0:02:39]} 3. g3 {[%clk 0:02:49]}  Nc6 {[%clk 0:02:38]} 4. Bg2 {[%clk 0:02:50]}  e5 {[%clk 0:02:38]} 5. d3 {[%clk 0:02:49]}  d6 {[%clk 0:02:38]} 6. Nf3 {[%clk 0:02:49]}  h6 {[%clk 0:02:38]} 7. O-O {[%clk 0:02:48]}  Be7 {[%clk 0:02:38]} 8. Rb1 {[%clk 0:02:48]}  O-O {[%clk 0:02:38]} 9. a3 {[%clk 0:02:48]}  a5 {[%clk 0:02:38]} 10. Ne1 {[%clk 0:02:48]}  Be6 {[%clk 0:02:36]} 11. Nd5 {[%clk 0:02:46]}  Re8 {[%clk 0:02:13]} 12. Nc2 {[%clk 0:02:42]}  Bxd5 {[%clk 0:01:58]} 13. cxd5 {[%clk 0:02:42]}  Nd4 {[%clk 0:01:58]} 14. Ne3 {[%clk 0:02:27]}  a4 {[%clk 0:01:54]} 15. Nc4 {[%clk 0:02:24]}  b5 {[%clk 0:01:52]} 16. Nd2 {[%clk 0:02:24]}  Bf8 {[%clk 0:01:41]} 17. e3 {[%clk 0:02:13]}  Nf5 {[%clk 0:01:40]} 18. b3 {[%clk 0:02:01]}  Ne7 {[%clk 0:01:39]} 19. bxa4 {[%clk 0:01:52]}  bxa4 {[%clk 0:01:33]} 20. e4 {[%clk 0:01:34]}  Qa5 {[%clk 0:01:13]} 21. Nc4 {[%clk 0:01:32]}  Qc7 {[%clk 0:01:10]} 22. Bd2 {[%clk 0:01:28]}  Nd7 {[%clk 0:01:02]} 23. Bh3 {[%clk 0:01:16]}  Reb8 {[%clk 0:00:47]} 24. Bxd7 {[%clk 0:00:49]}  Qxd7 {[%clk 0:00:30]} 25. Nb6 {[%clk 0:00:48]}  Qh3 {[%clk 0:00:30]} 26. Nxa8 {[%clk 0:00:43]}  Rxa8 {[%clk 0:00:31]} 27. Qf3 {[%clk 0:00:40]}  f5 {[%clk 0:00:31]} 28. Rb7 {[%clk 0:00:34]}  g5 {[%clk 0:00:24]} 29. Qg2 {[%clk 0:00:25]}  Qh5 {[%clk 0:00:23]} 30. f3 {[%clk 0:00:21]}  Qg6 {[%clk 0:00:17]} 31. f4 {[%clk 0:00:19]}  exf4 {[%clk 0:00:12]} 32. gxf4 {[%clk 0:00:20]}  g4 {[%clk 0:00:13]} 33. h3 {[%clk 0:00:14]}  h5 {[%clk 0:00:12]} 34. hxg4 {[%clk 0:00:14]}  hxg4 {[%clk 0:00:13]} 35. Bc3 {[%clk 0:00:10]}  Rd8 {[%clk 0:00:11]} 36. Kf2 {[%clk 0:00:10]}  fxe4 {[%clk 0:00:10]} 37. dxe4 {[%clk 0:00:10]}  Kf7 {[%clk 0:00:06]} 38. Rh1 {[%clk 0:00:10]}  Ke8 {[%clk 0:00:06]} 39. Qh2 {[%clk 0:00:09]}  Bg7 {[%clk 0:00:05]} 40. Bxg7 {[%clk 0:00:07]}  Qxg7 {[%clk 0:00:00]} 41. Qh8+ {[%clk 0:00:07]} 1-0


[Site "https://www.chess.com"]

[Event "Titled Tuesday Blitz October 31 Late 2023"]
[White "ChessLebaneseSalah"]
[Black "Sramek, Vojtech"]
[BlackFideId "358681"]
[WhiteElo "2397"]
[BlackElo "2296"]
[Result "1-0"]
[Round "10"]
[TimeControl "180+1"]
[Date "2023.10.31"]
[WhiteClock "0:00:04"]
[BlackClock "0:00:00"]
[Board "83"]

1. e4 {[%clk 0:02:53]}  c5 {[%clk 0:02:59]} 2. Nf3 {[%clk 0:02:53]}  d6 {[%clk 0:02:59]} 3. c3 {[%clk 0:02:51]}  Nf6 {[%clk 0:02:58]} 4. h3 {[%clk 0:02:51]}  g6 {[%clk 0:02:57]} 5. Bd3 {[%clk 0:02:49]}  Bg7 {[%clk 0:02:57]} 6. Bc2 {[%clk 0:02:48]}  O-O {[%clk 0:02:56]} 7. d4 {[%clk 0:02:48]}  Qc7 {[%clk 0:02:38]} 8. O-O {[%clk 0:02:47]}  Rd8 {[%clk 0:02:36]} 9. Re1 {[%clk 0:02:46]}  b6 {[%clk 0:02:30]} 10. Qe2 {[%clk 0:02:44]}  Ba6 {[%clk 0:02:17]} 11. Qe3 {[%clk 0:02:37]}  cxd4 {[%clk 0:02:16]} 12. Nxd4 {[%clk 0:02:38]}  Nc6 {[%clk 0:02:07]} 13. Na3 {[%clk 0:02:22]}  Rac8 {[%clk 0:01:53]} 14. Bb3 {[%clk 0:02:16]}  Bb7 {[%clk 0:01:29]} 15. f4 {[%clk 0:02:11]}  Nxd4 {[%clk 0:01:16]} 16. cxd4 {[%clk 0:02:05]}  Bxe4 {[%clk 0:01:10]} 17. Nb5 {[%clk 0:02:05]}  Qb7 {[%clk 0:01:08]} 18. Qf2 {[%clk 0:01:59]}  e6 {[%clk 0:00:57]} 19. Nc3 {[%clk 0:01:55]}  Bc6 {[%clk 0:00:57]} 20. f5 {[%clk 0:01:49]}  exf5 {[%clk 0:00:53]} 21. Bg5 {[%clk 0:01:45]}  Re8 {[%clk 0:00:47]} 22. g4 {[%clk 0:01:37]}  Ne4 {[%clk 0:00:42]} 23. Nxe4 {[%clk 0:01:33]}  Bxe4 {[%clk 0:00:43]} 24. gxf5 {[%clk 0:01:26]}  Bxf5 {[%clk 0:00:42]} 25. Rad1 {[%clk 0:01:05]}  d5 {[%clk 0:00:42]} 26. Qf3 {[%clk 0:00:54]}  Be4 {[%clk 0:00:37]} 27. Qf4 {[%clk 0:00:45]}  Qd7 {[%clk 0:00:34]} 28. Rf1 {[%clk 0:00:39]}  Bf5 {[%clk 0:00:17]} 29. h4 {[%clk 0:00:29]}  Re4 {[%clk 0:00:17]} 30. Qf2 {[%clk 0:00:22]}  h5 {[%clk 0:00:16]} 31. Kh2 {[%clk 0:00:14]}  f6 {[%clk 0:00:12]} 32. Bf4 {[%clk 0:00:13]}  Rce8 {[%clk 0:00:11]} 33. Rfe1 {[%clk 0:00:12]}  Rxe1 {[%clk 0:00:10]} 34. Rxe1 {[%clk 0:00:13]}  Rxe1 {[%clk 0:00:09]} 35. Qxe1 {[%clk 0:00:14]}  Qe6 {[%clk 0:00:09]} 36. Qf2 {[%clk 0:00:13]}  Qe4 {[%clk 0:00:09]} 37. Bg3 {[%clk 0:00:12]}  Bg4 {[%clk 0:00:07]} 38. Kg1 {[%clk 0:00:08]}  Bf3 {[%clk 0:00:06]} 39. Kh2 {[%clk 0:00:07]}  Qe2 {[%clk 0:00:06]} 40. Bxd5+ {[%clk 0:00:05]}  Kh7 {[%clk 0:00:06]} 41. Bxf3 {[%clk 0:00:05]}  Qd3 {[%clk 0:00:05]} 42. Be2 {[%clk 0:00:04]}  Qb1 {[%clk 0:00:04]} 43. a3 {[%clk 0:00:04]}  Qxb2 {[%clk 0:00:03]} 44. Bd3 {[%clk 0:00:03]}  Qb3 {[%clk 0:00:01]} 45. Qe2 {[%clk 0:00:02]}  Qf7 {[%clk 0:00:02]} 46. Qxh5+ {[%clk 0:00:02]}  Kg8 {[%clk 0:00:01]} 47. Qe2 {[%clk 0:00:03]}  f5 {[%clk 0:00:02]} 48. Qf3 {[%clk 0:00:03]}  Bxd4 {[%clk 0:00:01]} 49. Qe2 {[%clk 0:00:03]}  Bf6 {[%clk 0:00:00]} 50. Bc4 {[%clk 0:00:04]} 1-0


[Site "https://www.chess.com"]

[Event "Titled Tuesday Blitz October 31 Late 2023"]
[White "Todorovic, Bojan"]
[Black "Bazzano, Sebastian"]
[WhiteFideId "917087"]
[BlackFideId "104566"]
[WhiteElo "2384"]
[BlackElo "2283"]
[Result "1/2-1/2"]
[Round "10"]
[TimeControl "180+1"]
[Date "2023.10.31"]
[WhiteClock "0:00:18"]
[BlackClock "0:00:39"]
[Board "85"]

1. Nf3 {[%clk 0:02:58]}  Nf6 {[%clk 0:02:59]} 2. g3 {[%clk 0:02:57]}  g6 {[%clk 0:02:59]} 3. Bg2 {[%clk 0:02:57]}  Bg7 {[%clk 0:02:59]} 4. O-O {[%clk 0:02:57]}  O-O {[%clk 0:03:00]} 5. c4 {[%clk 0:02:56]}  c5 {[%clk 0:03:00]} 6. Nc3 {[%clk 0:02:55]}  Nc6 {[%clk 0:03:00]} 7. a3 {[%clk 0:02:53]}  d5 {[%clk 0:02:58]} 8. d3 {[%clk 0:02:50]}  dxc4 {[%clk 0:02:51]} 9. dxc4 {[%clk 0:02:49]}  Be6 {[%clk 0:02:48]} 10. Qa4 {[%clk 0:02:43]}  Nd4 {[%clk 0:02:37]} 11. Nxd4 {[%clk 0:02:10]}  cxd4 {[%clk 0:02:38]} 12. Ne4 {[%clk 0:01:59]}  Nxe4 {[%clk 0:02:27]} 13. Bxe4 {[%clk 0:01:59]}  Rc8 {[%clk 0:02:28]} 14. Qxa7 {[%clk 0:01:39]}  Bxc4 {[%clk 0:02:18]} 15. Bd3 {[%clk 0:01:26]}  Bxd3 {[%clk 0:02:09]} 16. exd3 {[%clk 0:01:26]}  Qd5 {[%clk 0:02:09]} 17. Bd2 {[%clk 0:01:13]}  Rc2 {[%clk 0:02:02]} 18. Bb4 {[%clk 0:01:09]}  Rxb2 {[%clk 0:01:58]} 19. Rac1 {[%clk 0:01:08]}  Bf6 {[%clk 0:01:43]} 20. Rc7 {[%clk 0:01:00]}  Qf3 {[%clk 0:01:27]} 21. Rxb7 {[%clk 0:00:50]}  Qxd3 {[%clk 0:01:21]} 22. Bxe7 {[%clk 0:00:45]}  Rxb7 {[%clk 0:01:17]} 23. Qxb7 {[%clk 0:00:45]}  Bxe7 {[%clk 0:01:10]} 24. Qxe7 {[%clk 0:00:44]}  Rb8 {[%clk 0:01:08]} 25. a4 {[%clk 0:00:33]}  Rb1 {[%clk 0:01:06]} 26. Rxb1 {[%clk 0:00:31]}  Qxb1+ {[%clk 0:01:07]} 27. Kg2 {[%clk 0:00:31]}  d3 {[%clk 0:01:05]} 28. a5 {[%clk 0:00:31]}  Qa1 {[%clk 0:00:44]} 29. Qd8+ {[%clk 0:00:23]}  Kg7 {[%clk 0:00:44]} 30. Qxd3 {[%clk 0:00:18]}  Qxa5 {[%clk 0:00:44]} 31. Qd4+ {[%clk 0:00:18]}  Kg8 {[%clk 0:00:39]} 32. h4 {[%clk 0:00:18]} 1/2-1/2


[Site "https://www.chess.com"]

[Event "Titled Tuesday Blitz October 31 Late 2023"]
[White "Lalanne, Pablo"]
[Black "De Souza, Cristiano Gomes"]
[WhiteFideId "112151"]
[BlackFideId "2151758"]
[WhiteElo "2339"]
[BlackElo "2255"]
[Result "0-1"]
[Round "10"]
[TimeControl "180+1"]
[Date "2023.10.31"]
[WhiteClock "0:00:24"]
[BlackClock "0:00:43"]
[Board "86"]

1. e4 {[%clk 0:03:00]}  c5 {[%clk 0:02:59]} 2. Nf3 {[%clk 0:03:00]}  d6 {[%clk 0:03:00]} 3. d4 {[%clk 0:03:00]}  cxd4 {[%clk 0:03:00]} 4. Nxd4 {[%clk 0:03:01]}  Nf6 {[%clk 0:03:01]} 5. Nc3 {[%clk 0:03:01]}  g6 {[%clk 0:03:02]} 6. Be3 {[%clk 0:03:01]}  Bg7 {[%clk 0:03:02]} 7. f3 {[%clk 0:03:02]}  O-O {[%clk 0:03:03]} 8. Qd2 {[%clk 0:03:02]}  Nc6 {[%clk 0:03:03]} 9. O-O-O {[%clk 0:03:02]}  d5 {[%clk 0:03:04]} 10. Kb1 {[%clk 0:03:03]}  Nxd4 {[%clk 0:03:00]} 11. e5 {[%clk 0:03:03]}  Nf5 {[%clk 0:02:54]} 12. exf6 {[%clk 0:03:03]}  Bxf6 {[%clk 0:02:47]} 13. Nxd5 {[%clk 0:03:02]}  Be6 {[%clk 0:02:37]} 14. Nxf6+ {[%clk 0:02:46]}  exf6 {[%clk 0:02:35]} 15. Bc5 {[%clk 0:02:10]}  Qxd2 {[%clk 0:02:31]} 16. Rxd2 {[%clk 0:02:10]}  Rfd8 {[%clk 0:02:30]} 17. Rxd8+ {[%clk 0:02:05]}  Rxd8 {[%clk 0:02:30]} 18. Bd3 {[%clk 0:02:05]}  b6 {[%clk 0:02:28]} 19. Bf2 {[%clk 0:02:03]}  h5 {[%clk 0:02:25]} 20. g4 {[%clk 0:01:58]}  hxg4 {[%clk 0:02:24]} 21. fxg4 {[%clk 0:01:58]}  Ne7 {[%clk 0:02:22]} 22. h3 {[%clk 0:01:56]}  Nd5 {[%clk 0:02:20]} 23. a3 {[%clk 0:01:46]}  Nf4 {[%clk 0:02:19]} 24. Bb5 {[%clk 0:01:35]}  Bd5 {[%clk 0:02:12]} 25. Rh2 {[%clk 0:01:20]}  Be6 {[%clk 0:02:00]} 26. b3 {[%clk 0:01:17]}  Rd1+ {[%clk 0:01:38]} 27. Kb2 {[%clk 0:01:16]}  Kg7 {[%clk 0:01:28]} 28. Be3 {[%clk 0:01:13]}  Nd5 {[%clk 0:01:23]} 29. Bd2 {[%clk 0:01:09]}  g5 {[%clk 0:01:16]} 30. Bd3 {[%clk 0:01:04]}  a5 {[%clk 0:01:09]} 31. c4 {[%clk 0:00:51]}  Ne7 {[%clk 0:01:05]} 32. Kc2 {[%clk 0:00:50]}  Ra1 {[%clk 0:01:00]} 33. Kb2 {[%clk 0:00:49]}  Rd1 {[%clk 0:00:58]} 34. Bc2 {[%clk 0:00:47]}  Rg1 {[%clk 0:00:55]} 35. Be3 {[%clk 0:00:46]}  Rg3 {[%clk 0:00:54]} 36. Bxb6 {[%clk 0:00:46]}  a4 {[%clk 0:00:51]} 37. Bc5 {[%clk 0:00:42]}  Nc6 {[%clk 0:00:47]} 38. Be4 {[%clk 0:00:39]}  Ne5 {[%clk 0:00:46]} 39. Bc2 {[%clk 0:00:34]}  axb3 {[%clk 0:00:46]} 40. Bxb3 {[%clk 0:00:34]}  Nd3+ {[%clk 0:00:46]} 41. Ka2 {[%clk 0:00:32]}  Nxc5 {[%clk 0:00:47]} 42. a4 {[%clk 0:00:24]}  Rc3 {[%clk 0:00:43]} 0-1


[Site "https://www.chess.com"]

[Event "Titled Tuesday Blitz October 31 Late 2023"]
[White "Flameboard08"]
[Black "Alfaro, William"]
[BlackFideId "6100457"]
[WhiteElo "2571"]
[BlackElo "2216"]
[Result "1-0"]
[Round "10"]
[TimeControl "180+1"]
[Date "2023.10.31"]
[WhiteClock "0:01:20"]
[BlackClock "0:00:22"]
[Board "88"]

1. f4 {[%clk 0:03:00]}  d5 {[%clk 0:02:57]} 2. Nf3 {[%clk 0:02:53]}  c5 {[%clk 0:02:57]} 3. d3 {[%clk 0:02:52]}  Nc6 {[%clk 0:02:58]} 4. g3 {[%clk 0:02:51]}  Nf6 {[%clk 0:02:54]} 5. Bg2 {[%clk 0:02:51]}  e6 {[%clk 0:02:50]} 6. O-O {[%clk 0:02:51]}  Be7 {[%clk 0:02:48]} 7. Nbd2 {[%clk 0:02:52]}  O-O {[%clk 0:02:35]} 8. e4 {[%clk 0:02:51]}  d4 {[%clk 0:02:23]} 9. h3 {[%clk 0:02:46]}  Qc7 {[%clk 0:02:14]} 10. a4 {[%clk 0:02:42]}  e5 {[%clk 0:02:10]} 11. f5 {[%clk 0:02:41]}  h6 {[%clk 0:02:05]} 12. g4 {[%clk 0:02:41]}  Nh7 {[%clk 0:02:05]} 13. h4 {[%clk 0:02:40]}  Bd7 {[%clk 0:01:39]} 14. Nc4 {[%clk 0:02:38]}  f6 {[%clk 0:01:39]} 15. Bd2 {[%clk 0:02:10]}  a6 {[%clk 0:01:38]} 16. a5 {[%clk 0:02:10]}  Be8 {[%clk 0:01:37]} 17. Qc1 {[%clk 0:02:09]}  Bf7 {[%clk 0:01:37]} 18. g5 {[%clk 0:02:07]}  Bxc4 {[%clk 0:01:36]} 19. dxc4 {[%clk 0:02:04]}  hxg5 {[%clk 0:01:25]} 20. hxg5 {[%clk 0:02:03]}  Nxg5 {[%clk 0:01:25]} 21. Nxg5 {[%clk 0:01:56]}  fxg5 {[%clk 0:01:25]} 22. Bf3 {[%clk 0:01:57]}  Nd8 {[%clk 0:00:46]} 23. Kg2 {[%clk 0:01:51]}  Nf7 {[%clk 0:00:45]} 24. Rh1 {[%clk 0:01:47]}  Nh6 {[%clk 0:00:45]} 25. Bxg5 {[%clk 0:01:39]}  Bxg5 {[%clk 0:00:44]} 26. Qxg5 {[%clk 0:01:39]}  Qd6 {[%clk 0:00:40]} 27. Kf2 {[%clk 0:01:29]}  Qf6 {[%clk 0:00:39]} 28. Qh5 {[%clk 0:01:21]}  Rf7 {[%clk 0:00:31]} 29. Rag1 {[%clk 0:01:20]}  Kf8 {[%clk 0:00:31]} 30. Rg6 {[%clk 0:01:19]}  Qd8 {[%clk 0:00:24]} 31. Rxh6 {[%clk 0:01:18]}  gxh6 {[%clk 0:00:23]} 32. Qxh6+ {[%clk 0:01:19]}  Ke7 {[%clk 0:00:23]} 33. Qe6+ {[%clk 0:01:19]}  Kf8 {[%clk 0:00:21]} 34. Rh8+ {[%clk 0:01:20]}  Kg7 {[%clk 0:00:22]} 35. Qh6# {[%clk 0:01:20]} 1-0


[Site "https://www.chess.com"]

[Event "Titled Tuesday Blitz October 31 Late 2023"]
[White "Chocenka, Dmitrijus"]
[Black "Padalka, Artem"]
[WhiteFideId "12802336"]
[BlackFideId "14118637"]
[WhiteElo "2474"]
[BlackElo "2329"]
[Result "1-0"]
[Round "10"]
[TimeControl "180+1"]
[Date "2023.10.31"]
[WhiteClock "0:00:45"]
[BlackClock "0:00:24"]
[Board "90"]

1. e4 {[%clk 0:02:58]}  c5 {[%clk 0:02:59]} 2. Nf3 {[%clk 0:02:57]}  d6 {[%clk 0:02:59]} 3. d4 {[%clk 0:02:57]}  cxd4 {[%clk 0:03:00]} 4. Nxd4 {[%clk 0:02:58]}  Nf6 {[%clk 0:03:01]} 5. Nc3 {[%clk 0:02:58]}  g6 {[%clk 0:03:02]} 6. f3 {[%clk 0:02:59]}  Bg7 {[%clk 0:03:02]} 7. Bc4 {[%clk 0:02:59]}  Nc6 {[%clk 0:03:03]} 8. Be3 {[%clk 0:02:59]}  O-O {[%clk 0:03:04]} 9. Qd2 {[%clk 0:02:59]}  Nxd4 {[%clk 0:03:04]} 10. Bxd4 {[%clk 0:02:59]}  Be6 {[%clk 0:03:05]} 11. Bb3 {[%clk 0:02:58]}  Qa5 {[%clk 0:03:04]} 12. O-O {[%clk 0:02:57]}  Nd7 {[%clk 0:03:03]} 13. Bxg7 {[%clk 0:02:55]}  Kxg7 {[%clk 0:03:04]} 14. Rfd1 {[%clk 0:02:48]}  Qc5+ {[%clk 0:02:58]} 15. Kh1 {[%clk 0:02:45]}  Rac8 {[%clk 0:02:48]} 16. f4 {[%clk 0:02:45]}  Nb6 {[%clk 0:02:42]} 17. f5 {[%clk 0:02:18]}  Bc4 {[%clk 0:02:04]} 18. Qg5 {[%clk 0:02:11]}  Qe5 {[%clk 0:02:03]} 19. Rd2 {[%clk 0:01:52]}  f6 {[%clk 0:01:51]} 20. Qg4 {[%clk 0:01:47]}  g5 {[%clk 0:01:37]} 21. Rad1 {[%clk 0:01:45]}  a5 {[%clk 0:01:27]} 22. Rd4 {[%clk 0:01:31]}  a4 {[%clk 0:01:24]} 23. Bxa4 {[%clk 0:01:22]}  Nxa4 {[%clk 0:01:16]} 24. Nxa4 {[%clk 0:01:22]}  Bxa2 {[%clk 0:01:14]} 25. Nb6 {[%clk 0:01:10]}  Rxc2 {[%clk 0:01:13]} 26. Nd7 {[%clk 0:01:10]}  Qc5 {[%clk 0:00:43]} 27. Nxc5 {[%clk 0:01:06]}  Rxc5 {[%clk 0:00:37]} 28. h4 {[%clk 0:01:05]}  h6 {[%clk 0:00:36]} 29. Rb4 {[%clk 0:00:58]}  b5 {[%clk 0:00:35]} 30. b3 {[%clk 0:00:57]}  Rfc8 {[%clk 0:00:31]} 31. Qh5 {[%clk 0:00:55]}  Rc1 {[%clk 0:00:28]} 32. Qg6+ {[%clk 0:00:55]}  Kf8 {[%clk 0:00:28]} 33. Qxh6+ {[%clk 0:00:54]}  Ke8 {[%clk 0:00:29]} 34. Rxc1 {[%clk 0:00:49]}  Rxc1+ {[%clk 0:00:30]} 35. Kh2 {[%clk 0:00:50]}  gxh4 {[%clk 0:00:29]} 36. Rxb5 {[%clk 0:00:50]}  Rc2 {[%clk 0:00:24]} 37. Rb7 {[%clk 0:00:45]} 1-0


[Site "https://www.chess.com"]

[Event "Titled Tuesday Blitz October 31 Late 2023"]
[White "Kujawski, Adam"]
[Black "Arutla, Aditya"]
[WhiteFideId "1100920"]
[BlackFideId "30961998"]
[WhiteElo "2331"]
[BlackElo "2424"]
[Result "1-0"]
[Round "10"]
[TimeControl "180+1"]
[Date "2023.10.31"]
[WhiteClock "0:01:58"]
[BlackClock "0:01:48"]
[Board "91"]

1. e4 {[%clk 0:02:58]}  e6 {[%clk 0:02:31]} 2. d4 {[%clk 0:02:51]}  Ke7 {[%clk 0:02:31]} 3. c4 {[%clk 0:02:49]}  d5 {[%clk 0:02:31]} 4. Nc3 {[%clk 0:02:48]}  dxe4 {[%clk 0:02:30]} 5. Nxe4 {[%clk 0:02:47]}  Nf6 {[%clk 0:02:30]} 6. Ng3 {[%clk 0:02:43]}  Nc6 {[%clk 0:02:30]} 7. Nf3 {[%clk 0:02:42]}  Ke8 {[%clk 0:02:29]} 8. Be2 {[%clk 0:02:31]}  Bb4+ {[%clk 0:02:25]} 9. Bd2 {[%clk 0:02:31]}  Qd6 {[%clk 0:02:18]} 10. O-O {[%clk 0:02:27]}  Bxd2 {[%clk 0:02:08]} 11. Qxd2 {[%clk 0:02:27]}  b6 {[%clk 0:02:04]} 12. Rad1 {[%clk 0:02:24]}  Bb7 {[%clk 0:02:04]} 13. Rfe1 {[%clk 0:02:18]}  Rd8 {[%clk 0:02:04]} 14. d5 {[%clk 0:02:10]}  exd5 {[%clk 0:02:03]} 15. Nf5 {[%clk 0:02:08]}  Qd7 {[%clk 0:02:01]} 16. cxd5 {[%clk 0:02:04]}  Ne7 {[%clk 0:01:48]} 17. Nxe7 {[%clk 0:01:58]} 1-0


[Site "https://www.chess.com"]

[Event "Titled Tuesday Blitz October 31 Late 2023"]
[White "Su, Dion"]
[Black "Skaric, Djuro"]
[WhiteFideId "2029731"]
[BlackFideId "934569"]
[WhiteElo "2403"]
[BlackElo "2308"]
[Result "1-0"]
[Round "10"]
[TimeControl "180+1"]
[Date "2023.10.31"]
[WhiteClock "0:00:13"]
[BlackClock "0:00:00"]
[Board "93"]

1. e4 {[%clk 0:03:00]}  d6 {[%clk 0:03:00]} 2. d4 {[%clk 0:03:00]}  g6 {[%clk 0:03:01]} 3. Nc3 {[%clk 0:03:00]}  Bg7 {[%clk 0:03:01]} 4. f4 {[%clk 0:03:01]}  Nf6 {[%clk 0:03:01]} 5. Nf3 {[%clk 0:03:01]}  O-O {[%clk 0:03:02]} 6. Bd3 {[%clk 0:02:59]}  Nc6 {[%clk 0:03:02]} 7. O-O {[%clk 0:02:59]}  e5 {[%clk 0:03:02]} 8. fxe5 {[%clk 0:02:55]}  dxe5 {[%clk 0:03:02]} 9. d5 {[%clk 0:02:56]}  Ne7 {[%clk 0:03:02]} 10. Nxe5 {[%clk 0:02:54]}  Nxe4 {[%clk 0:03:01]} 11. Nxg6 {[%clk 0:02:39]}  hxg6 {[%clk 0:02:27]} 12. Bxe4 {[%clk 0:02:38]}  Bxc3 {[%clk 0:02:19]} 13. bxc3 {[%clk 0:02:35]}  Qd6 {[%clk 0:02:17]} 14. Bh6 {[%clk 0:02:26]}  Re8 {[%clk 0:02:16]} 15. Kh1 {[%clk 0:02:22]}  Nf5 {[%clk 0:02:10]} 16. Bxf5 {[%clk 0:02:20]}  Bxf5 {[%clk 0:02:07]} 17. Qd4 {[%clk 0:02:05]}  Qe5 {[%clk 0:02:05]} 18. Qc4 {[%clk 0:02:02]}  Be4 {[%clk 0:01:57]} 19. Rad1 {[%clk 0:01:53]}  Qh5 {[%clk 0:01:25]} 20. Bf4 {[%clk 0:01:44]}  c6 {[%clk 0:00:54]} 21. d6 {[%clk 0:01:34]}  Qg4 {[%clk 0:00:47]} 22. Rd2 {[%clk 0:01:17]}  Bd5 {[%clk 0:00:47]} 23. Qd3 {[%clk 0:01:06]}  Be4 {[%clk 0:00:28]} 24. Qg3 {[%clk 0:01:02]}  Qxg3 {[%clk 0:00:15]} 25. Bxg3 {[%clk 0:01:03]}  Rad8 {[%clk 0:00:15]} 26. c4 {[%clk 0:00:43]}  Rd7 {[%clk 0:00:13]} 27. Kg1 {[%clk 0:00:40]}  f5 {[%clk 0:00:14]} 28. c5 {[%clk 0:00:37]}  g5 {[%clk 0:00:13]} 29. h4 {[%clk 0:00:34]}  f4 {[%clk 0:00:13]} 30. Be1 {[%clk 0:00:31]}  gxh4 {[%clk 0:00:14]} 31. Rxf4 {[%clk 0:00:30]}  Re6 {[%clk 0:00:11]} 32. Bxh4 {[%clk 0:00:28]}  Bd5 {[%clk 0:00:10]} 33. c4 {[%clk 0:00:24]}  Be4 {[%clk 0:00:07]} 34. Be7 {[%clk 0:00:19]}  Bg6 {[%clk 0:00:07]} 35. Rdf2 {[%clk 0:00:18]}  Rexe7 {[%clk 0:00:06]} 36. dxe7 {[%clk 0:00:17]}  Rxe7 {[%clk 0:00:07]} 37. Rf8+ {[%clk 0:00:16]}  Kg7 {[%clk 0:00:07]} 38. Rd8 {[%clk 0:00:15]}  Be4 {[%clk 0:00:06]} 39. Rd6 {[%clk 0:00:15]}  Bd3 {[%clk 0:00:05]} 40. Rf4 {[%clk 0:00:14]}  Bb1 {[%clk 0:00:00]} 41. a3 {[%clk 0:00:13]} 1-0


[Site "https://www.chess.com"]

[Event "Titled Tuesday Blitz October 31 Late 2023"]
[White "Broca Jimenez, Fernando"]
[Black "Bogaudinov, Rushan"]
[WhiteFideId "5104742"]
[BlackFideId "4129288"]
[WhiteElo "2251"]
[BlackElo "2358"]
[Result "1-0"]
[Round "10"]
[TimeControl "180+1"]
[Date "2023.10.31"]
[WhiteClock "0:00:20"]
[BlackClock "0:00:06"]
[Board "96"]

1. e4 {[%clk 0:03:00]}  a6 {[%clk 0:01:46]} 2. d4 {[%clk 0:02:58]}  e6 {[%clk 0:01:46]} 3. Nf3 {[%clk 0:02:57]}  d5 {[%clk 0:01:46]} 4. exd5 {[%clk 0:02:49]}  exd5 {[%clk 0:01:44]} 5. Bd3 {[%clk 0:02:49]}  Nf6 {[%clk 0:01:44]} 6. O-O {[%clk 0:02:49]}  Be7 {[%clk 0:01:45]} 7. Bg5 {[%clk 0:02:48]}  O-O {[%clk 0:01:45]} 8. Re1 {[%clk 0:02:48]}  Nc6 {[%clk 0:01:45]} 9. h3 {[%clk 0:02:47]}  Re8 {[%clk 0:01:43]} 10. c3 {[%clk 0:02:47]}  Ne4 {[%clk 0:01:40]} 11. Bxe7 {[%clk 0:02:41]}  Rxe7 {[%clk 0:01:40]} 12. Nbd2 {[%clk 0:02:26]}  Bf5 {[%clk 0:01:40]} 13. Nh4 {[%clk 0:02:22]}  Bg6 {[%clk 0:01:39]} 14. Nxg6 {[%clk 0:02:19]}  hxg6 {[%clk 0:01:39]} 15. Nxe4 {[%clk 0:02:18]}  dxe4 {[%clk 0:01:39]} 16. Rxe4 {[%clk 0:02:19]}  Qd6 {[%clk 0:01:37]} 17. Rxe7 {[%clk 0:02:13]}  Nxe7 {[%clk 0:01:38]} 18. Qf3 {[%clk 0:02:10]}  c6 {[%clk 0:01:37]} 19. Re1 {[%clk 0:02:09]}  Nd5 {[%clk 0:01:36]} 20. Bc4 {[%clk 0:02:09]}  Nf6 {[%clk 0:01:36]} 21. Re3 {[%clk 0:01:59]}  b5 {[%clk 0:01:32]} 22. Bb3 {[%clk 0:01:57]}  a5 {[%clk 0:01:32]} 23. Qg3 {[%clk 0:01:36]}  Qxg3 {[%clk 0:01:31]} 24. fxg3 {[%clk 0:01:37]}  Kf8 {[%clk 0:01:30]} 25. Kf2 {[%clk 0:01:35]}  a4 {[%clk 0:01:30]} 26. Bc2 {[%clk 0:01:35]}  a3 {[%clk 0:01:31]} 27. b3 {[%clk 0:01:34]}  Rd8 {[%clk 0:01:31]} 28. Be4 {[%clk 0:01:31]}  Rd6 {[%clk 0:01:16]} 29. Bf3 {[%clk 0:01:25]}  g5 {[%clk 0:01:08]} 30. Ke2 {[%clk 0:01:24]}  g6 {[%clk 0:01:06]} 31. Kd3 {[%clk 0:01:22]}  Nh5 {[%clk 0:00:54]} 32. Bxh5 {[%clk 0:01:18]}  gxh5 {[%clk 0:00:55]} 33. c4 {[%clk 0:01:16]}  Rf6 {[%clk 0:00:49]} 34. cxb5 {[%clk 0:01:09]}  cxb5 {[%clk 0:00:49]} 35. Re2 {[%clk 0:01:09]}  b4 {[%clk 0:00:40]} 36. Kc4 {[%clk 0:01:09]}  Rb6 {[%clk 0:00:39]} 37. Kc5 {[%clk 0:01:08]}  Rb8 {[%clk 0:00:38]} 38. d5 {[%clk 0:01:08]}  Rc8+ {[%clk 0:00:28]} 39. Kxb4 {[%clk 0:01:07]}  Rc1 {[%clk 0:00:28]} 40. Kxa3 {[%clk 0:01:05]}  Rd1 {[%clk 0:00:29]} 41. Ka4 {[%clk 0:00:51]}  Rxd5 {[%clk 0:00:28]} 42. b4 {[%clk 0:00:52]}  f5 {[%clk 0:00:22]} 43. b5 {[%clk 0:00:51]}  Rd8 {[%clk 0:00:19]} 44. b6 {[%clk 0:00:49]}  Ra8+ {[%clk 0:00:19]} 45. Kb5 {[%clk 0:00:50]}  Rb8 {[%clk 0:00:16]} 46. Kc6 {[%clk 0:00:49]}  Rc8+ {[%clk 0:00:16]} 47. Kb7 {[%clk 0:00:50]}  Rc4 {[%clk 0:00:16]} 48. Re5 {[%clk 0:00:32]}  f4 {[%clk 0:00:16]} 49. Rxg5 {[%clk 0:00:31]}  fxg3 {[%clk 0:00:16]} 50. Rxg3 {[%clk 0:00:32]}  Ra4 {[%clk 0:00:15]} 51. a3 {[%clk 0:00:31]}  h4 {[%clk 0:00:15]} 52. Rc3 {[%clk 0:00:31]}  Ke7 {[%clk 0:00:15]} 53. Kc7 {[%clk 0:00:31]}  Ke6 {[%clk 0:00:07]} 54. b7 {[%clk 0:00:30]}  Kd5 {[%clk 0:00:08]} 55. b8=Q {[%clk 0:00:27]}  Kd4 {[%clk 0:00:08]} 56. Rc6 {[%clk 0:00:23]}  Ke3 {[%clk 0:00:07]} 57. Qb3+ {[%clk 0:00:21]}  Kf2 {[%clk 0:00:07]} 58. Qxa4 {[%clk 0:00:21]}  Kg3 {[%clk 0:00:07]} 59. Qg4+ {[%clk 0:00:21]}  Kh2 {[%clk 0:00:07]} 60. g3 {[%clk 0:00:19]}  hxg3 {[%clk 0:00:06]} 61. Rc2+ {[%clk 0:00:20]}  Kh1 {[%clk 0:00:06]} 62. Qf3+ {[%clk 0:00:20]}  Kg1 {[%clk 0:00:06]} 63. Qg2# {[%clk 0:00:20]} 1-0


[Site "https://www.chess.com"]